Supplier Name,Service Area Category,Trans date,Unique Invoice Reference,Expenditure description,Posted Amount
Express Recruitment Ltd,Management & Support Services,28/11/2017,9075271,Admin Agency Staff,518.00 
Express Recruitment Ltd,Operational Responses,28/11/2017,9075271,Admin Agency Staff,522.72 
S F Recruitment Ltd,Management & Support Services,29/11/2017,9075284,Admin Agency Staff,367.50 
S F Recruitment Ltd,Management & Support Services,29/11/2017,9075285,Admin Agency Staff,363.66 
S F Recruitment Ltd,Management & Support Services,22/11/2017,9075287,Admin Agency Staff,388.50 
S F Recruitment Ltd,Management & Support Services,22/11/2017,9075288,Admin Agency Staff,376.06 
Express Recruitment Ltd,Management & Support Services,05/12/2017,9075344,Admin Agency Staff,2.05 
Express Recruitment Ltd,Management & Support Services,05/12/2017,9075344,Admin Agency Staff,423.50 
Express Recruitment Ltd,Operational Responses,05/12/2017,9075344,Admin Agency Staff,2.06 
Express Recruitment Ltd,Operational Responses,05/12/2017,9075344,Admin Agency Staff,518.00 
Reflect Recruitment Group Limited,Management & Support Services,04/12/2017,9075352,Admin Agency Staff,629.53 
Recon Services Limited,Management & Support Services,19/11/2017,9075395,Admin Agency Staff,540.00 
Recon Services Limited,Management & Support Services,03/12/2017,9075396,Admin Agency Staff,540.00 
Hays Specialist Recruitment Limited,Management & Support Services,13/10/2017,9075413,Admin Agency Staff,767.77 
S F Recruitment Ltd,Management & Support Services,20/12/2017,9075463,Admin Agency Staff,367.79 
S F Recruitment Ltd,Management & Support Services,13/12/2017,9075466,Admin Agency Staff,363.66 
Express Recruitment Ltd,Management & Support Services,12/12/2017,9075611,Admin Agency Staff,2.27 
Express Recruitment Ltd,Management & Support Services,12/12/2017,9075611,Admin Agency Staff,490.00 
Express Recruitment Ltd,Operational Responses,12/12/2017,9075611,Admin Agency Staff,2.27 
Express Recruitment Ltd,Operational Responses,12/12/2017,9075611,Admin Agency Staff,518.00 
Express Recruitment Ltd,Management & Support Services,27/12/2017,9075651,Admin Agency Staff,492.27 
Express Recruitment Ltd,Operational Responses,27/12/2017,9075651,Admin Agency Staff,520.28 
Silver Lining Training,Management & Support Services,20/11/2017,9075240,Training,531.40 
The Institution Of Fire Engineers,Management & Support Services,30/11/2017,9075264,Training,333.00 
Rescue 3 Europe Limited,Management & Support Services,06/12/2017,9075304,Training,"1,545.00 "
West Sussex Fire & Rescue Service,Management & Support Services,01/12/2017,9075318,Training,"1,614.00 "
Drivercheck Ltd,Management & Support Services,30/11/2017,9075414,Training,318.00 
The Institution Of Fire Engineers,Management & Support Services,01/01/2018,9075459,Training,444.01 
Open University,Management & Support Services,12/12/2017,9075470,Training,"4,720.00 "
Nottingham City Council,Management & Support Services,01/11/2017,9075479,Training,267.55 
Nottingham City Council,Management & Support Services,12/10/2017,9075504,Training,562.50 
C F S Messing Account Stockhill,Operational Responses,18/07/2017,9075247,Spoilt Meal Reimbursement,449.80 
London Road - Petty Cash Account,Operational Responses,30/11/2017,9075491,Spoilt Meal Reimbursement,240.00 
C F S Messing Account Stockhill,Operational Responses,30/11/2017,9075627,Spoilt Meal Reimbursement,964.00 
Redacted Personal Data,Management & Support Services,30/11/2017,9075286,Professional Body Subscriptions,310.00 
Redacted Personal Data,Management & Support Services,06/12/2017,9075402,Professional Body Subscriptions,298.50 
NCC Sundry Debtors,Management & Support Services,18/10/2017,9075244,Recruitment Advertising,"1,641.60 "
Flat Fee Recruiter Limited,Management & Support Services,11/11/2017,9075246,Recruitment Advertising,-229.00 
Flat Fee Recruiter Limited,Management & Support Services,11/11/2017,9075246,Recruitment Advertising,458.00 
Flat Fee Recruiter Limited,Management & Support Services,13/11/2017,9075302,Recruitment Advertising,229.00 
Promotional Displays & Signs Company,Operational Responses,30/11/2017,9075267,Buildings Repairs and Maintenance - Reactive,426.00 
GES (Leicester) Limited,Operational Responses,30/11/2017,9075243,Building Maintenance - Planned,43.06 
GES (Leicester) Limited,Operational Responses,30/11/2017,9075243,Building Maintenance - Planned,43.06 
GES (Leicester) Limited,Operational Responses,30/11/2017,9075243,Building Maintenance - Planned,43.06 
GES (Leicester) Limited,Operational Responses,30/11/2017,9075243,Building Maintenance - Planned,43.06 
GES (Leicester) Limited,Operational Responses,30/11/2017,9075243,Building Maintenance - Planned,43.06 
GES (Leicester) Limited,Operational Responses,30/11/2017,9075243,Building Maintenance - Planned,43.06 
GES (Leicester) Limited,Operational Responses,30/11/2017,9075243,Building Maintenance - Planned,43.06 
GES (Leicester) Limited,Operational Responses,30/11/2017,9075243,Building Maintenance - Planned,43.06 
GES (Leicester) Limited,Operational Responses,30/11/2017,9075243,Building Maintenance - Planned,43.06 
GES (Leicester) Limited,Operational Responses,30/11/2017,9075243,Building Maintenance - Planned,43.06 
GES (Leicester) Limited,Operational Responses,30/11/2017,9075243,Building Maintenance - Planned,43.06 
GES (Leicester) Limited,Operational Responses,30/11/2017,9075243,Building Maintenance - Planned,43.06 
GES (Leicester) Limited,Operational Responses,30/11/2017,9075243,Building Maintenance - Planned,43.05 
GES (Leicester) Limited,Operational Responses,30/11/2017,9075243,Building Maintenance - Planned,43.05 
GES (Leicester) Limited,Operational Responses,30/11/2017,9075243,Building Maintenance - Planned,43.05 
GES (Leicester) Limited,Operational Responses,30/11/2017,9075243,Building Maintenance - Planned,43.05 
GES (Leicester) Limited,Operational Responses,30/11/2017,9075243,Building Maintenance - Planned,43.05 
GES (Leicester) Limited,Operational Responses,30/11/2017,9075243,Building Maintenance - Planned,43.05 
GES (Leicester) Limited,Operational Responses,30/11/2017,9075243,Building Maintenance - Planned,43.05 
GES (Leicester) Limited,Operational Responses,30/11/2017,9075243,Building Maintenance - Planned,43.06 
GES (Leicester) Limited,Operational Responses,30/11/2017,9075243,Building Maintenance - Planned,43.06 
GES (Leicester) Limited,Operational Responses,30/11/2017,9075243,Building Maintenance - Planned,43.06 
GES (Leicester) Limited,Operational Responses,30/11/2017,9075243,Building Maintenance - Planned,43.06 
GES (Leicester) Limited,Operational Responses,30/11/2017,9075243,Building Maintenance - Planned,43.06 
GES (Leicester) Limited,Management & Support Services,30/11/2017,9075243,Building Maintenance - Planned,43.06 
GES (Leicester) Limited,Management & Support Services,30/11/2017,9075243,Building Maintenance - Planned,43.01 
GES (Leicester) Limited,Prevention & Education,30/11/2017,9075243,Building Maintenance - Planned,43.06 
Amptron Electrical Services,Operational Responses,30/09/2017,9075315,Building Maintenance - Planned,160.65 
Amptron Electrical Services,Operational Responses,30/09/2017,9075315,Building Maintenance - Planned,803.72 
Amptron Electrical Services,Operational Responses,30/09/2017,9075315,Building Maintenance - Planned,406.44 
Amptron Electrical Services,Operational Responses,30/09/2017,9075315,Building Maintenance - Planned,10.00 
Amptron Electrical Services,Operational Responses,30/09/2017,9075315,Building Maintenance - Planned,498.69 
Amptron Electrical Services,Operational Responses,30/09/2017,9075315,Building Maintenance - Planned,828.81 
Amptron Electrical Services,Operational Responses,30/09/2017,9075315,Building Maintenance - Planned,249.34 
Amptron Electrical Services,Operational Responses,30/09/2017,9075315,Building Maintenance - Planned,584.49 
Amptron Electrical Services,Operational Responses,30/09/2017,9075315,Building Maintenance - Planned,392.19 
Amptron Electrical Services,Operational Responses,30/09/2017,9075315,Building Maintenance - Planned,324.33 
Amptron Electrical Services,Operational Responses,30/09/2017,9075315,Building Maintenance - Planned,"1,173.24 "
Amptron Electrical Services,Operational Responses,30/09/2017,9075315,Building Maintenance - Planned,477.36 
Amptron Electrical Services,Operational Responses,30/09/2017,9075315,Building Maintenance - Planned,301.71 
Amptron Electrical Services,Operational Responses,30/09/2017,9075315,Building Maintenance - Planned,542.84 
Amptron Electrical Services,Operational Responses,30/09/2017,9075315,Building Maintenance - Planned,711.56 
Amptron Electrical Services,Operational Responses,30/09/2017,9075315,Building Maintenance - Planned,174.35 
Amptron Electrical Services,Operational Responses,30/09/2017,9075315,Building Maintenance - Planned,"1,487.90 "
Amptron Electrical Services,Operational Responses,30/09/2017,9075315,Building Maintenance - Planned,"1,803.64 "
Amptron Electrical Services,Operational Responses,30/09/2017,9075315,Building Maintenance - Planned,271.96 
Amptron Electrical Services,Operational Responses,30/09/2017,9075315,Building Maintenance - Planned,204.10 
Amptron Electrical Services,Operational Responses,30/09/2017,9075315,Building Maintenance - Planned,144.60 
Amptron Electrical Services,Operational Responses,30/09/2017,9075315,Building Maintenance - Planned,696.31 
Amptron Electrical Services,Operational Responses,30/09/2017,9075315,Building Maintenance - Planned,"2,736.74 "
Amptron Electrical Services,Operational Responses,30/09/2017,9075315,Building Maintenance - Planned,426.98 
Amptron Electrical Services,Operational Responses,30/09/2017,9075315,Building Maintenance - Planned,"2,617.91 "
Amptron Electrical Services,Management & Support Services,30/09/2017,9075315,Building Maintenance - Planned,"4,209.03 "
Amptron Electrical Services,Management & Support Services,30/09/2017,9075315,Building Maintenance - Planned,"6,825.72 "
Amptron Electrical Services,Operational Responses,30/10/2017,9075326,Building Maintenance - Planned,182.37 
Amptron Electrical Services,Operational Responses,30/10/2017,9075326,Building Maintenance - Planned,"1,232.80 "
Amptron Electrical Services,Operational Responses,30/10/2017,9075326,Building Maintenance - Planned,685.05 
Amptron Electrical Services,Operational Responses,30/10/2017,9075326,Building Maintenance - Planned,972.35 
Amptron Electrical Services,Operational Responses,30/10/2017,9075326,Building Maintenance - Planned,"1,103.60 "
Amptron Electrical Services,Operational Responses,30/10/2017,9075326,Building Maintenance - Planned,776.21 
Amptron Electrical Services,Operational Responses,30/10/2017,9075326,Building Maintenance - Planned,654.05 
Amptron Electrical Services,Operational Responses,30/10/2017,9075326,Building Maintenance - Planned,792.88 
Amptron Electrical Services,Operational Responses,30/10/2017,9075326,Building Maintenance - Planned,548.75 
Amptron Electrical Services,Operational Responses,30/10/2017,9075326,Building Maintenance - Planned,644.05 
Amptron Electrical Services,Operational Responses,30/10/2017,9075326,Building Maintenance - Planned,"1,248.20 "
Amptron Electrical Services,Operational Responses,30/10/2017,9075326,Building Maintenance - Planned,681.95 
Amptron Electrical Services,Operational Responses,30/10/2017,9075326,Building Maintenance - Planned,641.06 
Amptron Electrical Services,Operational Responses,30/10/2017,9075326,Building Maintenance - Planned,469.17 
Amptron Electrical Services,Operational Responses,30/10/2017,9075326,Building Maintenance - Planned,"1,604.33 "
Amptron Electrical Services,Operational Responses,30/10/2017,9075326,Building Maintenance - Planned,556.37 
Amptron Electrical Services,Operational Responses,30/10/2017,9075326,Building Maintenance - Planned,844.65 
Amptron Electrical Services,Operational Responses,30/10/2017,9075326,Building Maintenance - Planned,521.87 
Amptron Electrical Services,Operational Responses,30/10/2017,9075326,Building Maintenance - Planned,641.06 
Amptron Electrical Services,Operational Responses,30/10/2017,9075326,Building Maintenance - Planned,740.74 
Amptron Electrical Services,Operational Responses,30/10/2017,9075326,Building Maintenance - Planned,786.30 
Amptron Electrical Services,Operational Responses,30/10/2017,9075326,Building Maintenance - Planned,"1,191.85 "
Amptron Electrical Services,Operational Responses,30/10/2017,9075326,Building Maintenance - Planned,"1,843.15 "
Amptron Electrical Services,Operational Responses,30/10/2017,9075326,Building Maintenance - Planned,483.75 
Amptron Electrical Services,Operational Responses,30/10/2017,9075326,Building Maintenance - Planned,"1,831.11 "
Amptron Electrical Services,Management & Support Services,30/10/2017,9075326,Building Maintenance - Planned,"2,843.94 "
Amptron Electrical Services,Management & Support Services,30/10/2017,9075326,Building Maintenance - Planned,798.28 
BWT UK Limited,Operational Responses,30/11/2017,9075444,Building Maintenance - Planned,23.73 
BWT UK Limited,Operational Responses,30/11/2017,9075444,Building Maintenance - Planned,15.82 
BWT UK Limited,Operational Responses,30/11/2017,9075444,Building Maintenance - Planned,23.73 
BWT UK Limited,Operational Responses,30/11/2017,9075444,Building Maintenance - Planned,15.82 
BWT UK Limited,Operational Responses,30/11/2017,9075444,Building Maintenance - Planned,23.73 
BWT UK Limited,Operational Responses,30/11/2017,9075444,Building Maintenance - Planned,7.91 
BWT UK Limited,Operational Responses,30/11/2017,9075444,Building Maintenance - Planned,15.82 
BWT UK Limited,Operational Responses,30/11/2017,9075444,Building Maintenance - Planned,7.91 
BWT UK Limited,Operational Responses,30/11/2017,9075444,Building Maintenance - Planned,7.91 
BWT UK Limited,Operational Responses,30/11/2017,9075444,Building Maintenance - Planned,23.73 
BWT UK Limited,Operational Responses,30/11/2017,9075444,Building Maintenance - Planned,7.91 
BWT UK Limited,Operational Responses,30/11/2017,9075444,Building Maintenance - Planned,7.91 
BWT UK Limited,Operational Responses,30/11/2017,9075444,Building Maintenance - Planned,7.91 
BWT UK Limited,Operational Responses,30/11/2017,9075444,Building Maintenance - Planned,15.82 
BWT UK Limited,Operational Responses,30/11/2017,9075444,Building Maintenance - Planned,15.82 
BWT UK Limited,Operational Responses,30/11/2017,9075444,Building Maintenance - Planned,15.82 
BWT UK Limited,Operational Responses,30/11/2017,9075444,Building Maintenance - Planned,15.82 
BWT UK Limited,Operational Responses,30/11/2017,9075444,Building Maintenance - Planned,15.82 
BWT UK Limited,Operational Responses,30/11/2017,9075444,Building Maintenance - Planned,7.91 
BWT UK Limited,Management & Support Services,30/11/2017,9075444,Building Maintenance - Planned,23.73 
BWT UK Limited,Management & Support Services,30/11/2017,9075444,Building Maintenance - Planned,71.19 
EDF Customer Field Services,Operational Responses,08/11/2017,9075225,Electricity,360.00 
British Gas Business,Operational Responses,07/11/2017,9075254,Electricity,"1,092.25 "
British Gas Business,Operational Responses,07/11/2017,9075254,Electricity,174.92 
British Gas Business,Operational Responses,07/11/2017,9075254,Electricity,968.95 
British Gas Business,Operational Responses,07/11/2017,9075254,Electricity,485.00 
British Gas Business,Operational Responses,07/11/2017,9075254,Electricity,218.93 
British Gas Business,Operational Responses,07/11/2017,9075254,Electricity,770.37 
British Gas Business,Operational Responses,07/11/2017,9075254,Electricity,251.89 
British Gas Business,Operational Responses,07/11/2017,9075254,Electricity,158.06 
British Gas Business,Operational Responses,07/11/2017,9075254,Electricity,244.93 
British Gas Business,Operational Responses,07/11/2017,9075254,Electricity,200.59 
British Gas Business,Operational Responses,07/11/2017,9075254,Electricity,159.93 
British Gas Business,Operational Responses,07/11/2017,9075254,Electricity,245.46 
British Gas Business,Operational Responses,07/11/2017,9075254,Electricity,185.64 
British Gas Business,Operational Responses,07/11/2017,9075254,Electricity,"1,035.53 "
British Gas Business,Operational Responses,07/11/2017,9075254,Electricity,864.30 
British Gas Business,Operational Responses,07/11/2017,9075254,Electricity,377.28 
British Gas Business,Operational Responses,07/11/2017,9075254,Electricity,265.38 
British Gas Business,Operational Responses,07/11/2017,9075254,Electricity,194.28 
British Gas Business,Operational Responses,07/11/2017,9075254,Electricity,728.25 
British Gas Business,Operational Responses,07/11/2017,9075254,Electricity,176.76 
British Gas Business,Management & Support Services,07/11/2017,9075254,Electricity,66.44 
British Gas Business,Management & Support Services,07/11/2017,9075254,Electricity,"3,534.72 "
British Gas Business,Prevention & Education,07/11/2017,9075254,Electricity,342.34 
British Gas Business,Operational Responses,07/11/2017,9075254,Electricity,154.04 
EDF Energy,Operational Responses,01/12/2017,9075372,Electricity,"3,554.11 "
EDF Energy,Operational Responses,01/12/2017,9075373,Electricity,889.94 
EDF Energy,Operational Responses,01/12/2017,9075374,Electricity,"1,410.34 "
EDF Energy,Operational Responses,01/12/2017,9075376,Electricity,"1,272.70 "
EDF Energy,Management & Support Services,01/12/2017,9075584,Electricity,"1,858.44 "
British Gas Business,Operational Responses,07/12/2017,9075588,Electricity,210.29 
British Gas Business,Operational Responses,07/12/2017,9075588,Electricity,"1,160.03 "
British Gas Business,Operational Responses,07/12/2017,9075588,Electricity,266.30 
British Gas Business,Operational Responses,07/12/2017,9075588,Electricity,997.89 
British Gas Business,Operational Responses,07/12/2017,9075588,Electricity,541.88 
British Gas Business,Operational Responses,07/12/2017,9075588,Electricity,233.17 
British Gas Business,Operational Responses,07/12/2017,9075588,Electricity,929.94 
British Gas Business,Operational Responses,07/12/2017,9075588,Electricity,283.50 
British Gas Business,Operational Responses,07/12/2017,9075588,Electricity,151.42 
British Gas Business,Operational Responses,07/12/2017,9075588,Electricity,344.69 
British Gas Business,Operational Responses,07/12/2017,9075588,Electricity,136.21 
British Gas Business,Operational Responses,07/12/2017,9075588,Electricity,171.23 
British Gas Business,Operational Responses,07/12/2017,9075588,Electricity,364.37 
British Gas Business,Operational Responses,07/12/2017,9075588,Electricity,179.87 
British Gas Business,Operational Responses,07/12/2017,9075588,Electricity,"1,100.73 "
British Gas Business,Operational Responses,07/12/2017,9075588,Electricity,938.82 
British Gas Business,Operational Responses,07/12/2017,9075588,Electricity,614.65 
British Gas Business,Operational Responses,07/12/2017,9075588,Electricity,-265.38 
British Gas Business,Operational Responses,07/12/2017,9075588,Electricity,164.46 
British Gas Business,Operational Responses,07/12/2017,9075588,Electricity,210.03 
British Gas Business,Operational Responses,07/12/2017,9075588,Electricity,192.24 
British Gas Business,Operational Responses,07/12/2017,9075588,Electricity,736.01 
British Gas Business,Operational Responses,07/12/2017,9075588,Electricity,182.80 
British Gas Business,Management & Support Services,07/12/2017,9075588,Electricity,76.79 
British Gas Business,Management & Support Services,07/12/2017,9075588,Electricity,"3,800.15 "
British Gas Business,Prevention & Education,07/12/2017,9075588,Electricity,382.39 
Corona Energy,Management & Support Services,09/11/2017,9075224,Gas,"1,700.88 "
Corona Energy,Operational Responses,09/11/2017,9075234,Gas,300.01 
Corona Energy,Operational Responses,09/11/2017,9075235,Gas,485.27 
Corona Energy,Operational Responses,09/11/2017,9075236,Gas,671.19 
Corona Energy,Operational Responses,09/11/2017,9075238,Gas,564.58 
Corona Energy,Management & Support Services,09/11/2017,9075328,Gas,348.30 
Corona Energy,Operational Responses,09/11/2017,9075329,Gas,289.60 
Corona Energy,Operational Responses,09/11/2017,9075330,Gas,755.30 
Corona Energy,Operational Responses,09/11/2017,9075331,Gas,493.88 
Corona Energy,Operational Responses,09/11/2017,9075332,Gas,351.86 
Corona Energy,Operational Responses,09/11/2017,9075335,Gas,461.03 
Corona Energy,Operational Responses,09/11/2017,9075336,Gas,964.81 
Corona Energy,Operational Responses,09/11/2017,9075337,Gas,467.62 
Enviroenergy Lrd,Operational Responses,30/11/2017,9075445,Gas,"1,262.63 "
Corona Energy,Operational Responses,08/12/2017,9075524,Gas,"1,356.57 "
Corona Energy,Operational Responses,08/12/2017,9075527,Gas,948.93 
Corona Energy,Management & Support Services,08/12/2017,9075530,Gas,566.60 
Corona Energy,Operational Responses,08/12/2017,9075533,Gas,215.00 
Corona Energy,Operational Responses,08/12/2017,9075534,Gas,331.66 
Corona Energy,Operational Responses,08/12/2017,9075536,Gas,364.04 
Corona Energy,Management & Support Services,08/12/2017,9075538,Gas,"1,591.21 "
Corona Energy,Operational Responses,08/12/2017,9075573,Gas,377.69 
Corona Energy,Operational Responses,08/12/2017,9075574,Gas,611.83 
Corona Energy,Operational Responses,08/12/2017,9075578,Gas,862.35 
Corona Energy,Operational Responses,08/12/2017,9075580,Gas,"1,179.43 "
Corona Energy,Operational Responses,08/12/2017,9075591,Gas,477.62 
Corona Energy,Operational Responses,08/12/2017,9075595,Gas,562.28 
Corona Energy,Operational Responses,08/12/2017,9075596,Gas,674.60 
Corona Energy,Operational Responses,08/12/2017,9075604,Gas,776.79 
Corona Energy,Operational Responses,08/12/2017,9075540,Gas,-255.75 
Water Plus Limited (Payments Centre),Operational Responses,20/11/2017,9075230,Water Rates,216.33 
Water Plus Limited (Payments Centre),Operational Responses,20/11/2017,9075230,Sewerage and Environmental,148.76 
Water Plus Limited (Payments Centre),Operational Responses,20/11/2017,9075230,Sewerage and Environmental,568.25 
Bassetlaw District Council (Debt Collection),Operational Responses,30/11/2017,9075434,Business Rates,515.00 
Bassetlaw District Council (Debt Collection),Operational Responses,30/11/2017,9075437,Business Rates,"1,200.00 "
Bassetlaw District Council (Debt Collection),Operational Responses,30/11/2017,9075532,Business Rates,465.00 
Bassetlaw District Council (Debt Collection),Operational Responses,30/11/2017,9075600,Business Rates,630.00 
Shred IT Limited,Operational Responses,30/06/2017,9075298,Refuse / Trade Waste Collection,40.00 
Shred IT Limited,Operational Responses,30/06/2017,9075298,Refuse / Trade Waste Collection,40.00 
Shred IT Limited,Operational Responses,30/06/2017,9075298,Refuse / Trade Waste Collection,40.00 
Shred IT Limited,Operational Responses,30/06/2017,9075298,Refuse / Trade Waste Collection,40.00 
Shred IT Limited,Operational Responses,30/06/2017,9075298,Refuse / Trade Waste Collection,101.00 
Shred IT Limited,Operational Responses,30/06/2017,9075298,Refuse / Trade Waste Collection,40.00 
Shred IT Limited,Operational Responses,30/06/2017,9075298,Refuse / Trade Waste Collection,40.00 
Shred IT Limited,Operational Responses,30/06/2017,9075298,Refuse / Trade Waste Collection,40.00 
Shred IT Limited,Management & Support Services,30/06/2017,9075298,Refuse / Trade Waste Collection,150.00 
Shred IT Limited,Operational Responses,31/07/2017,9075299,Refuse / Trade Waste Collection,40.00 
Shred IT Limited,Operational Responses,31/07/2017,9075299,Refuse / Trade Waste Collection,40.00 
Shred IT Limited,Operational Responses,31/07/2017,9075299,Refuse / Trade Waste Collection,40.00 
Shred IT Limited,Operational Responses,31/07/2017,9075299,Refuse / Trade Waste Collection,40.00 
Shred IT Limited,Management & Support Services,31/07/2017,9075299,Refuse / Trade Waste Collection,40.00 
Shred IT Limited,Management & Support Services,31/07/2017,9075299,Refuse / Trade Waste Collection,150.00 
Shred IT Limited,Operational Responses,30/09/2017,9075300,Refuse / Trade Waste Collection,40.00 
Shred IT Limited,Operational Responses,30/09/2017,9075300,Refuse / Trade Waste Collection,40.00 
Shred IT Limited,Operational Responses,30/09/2017,9075300,Refuse / Trade Waste Collection,40.00 
Shred IT Limited,Operational Responses,30/09/2017,9075300,Refuse / Trade Waste Collection,40.00 
Shred IT Limited,Operational Responses,30/09/2017,9075300,Refuse / Trade Waste Collection,40.00 
Shred IT Limited,Management & Support Services,30/09/2017,9075300,Refuse / Trade Waste Collection,40.00 
Shred IT Limited,Management & Support Services,30/09/2017,9075300,Refuse / Trade Waste Collection,225.00 
Shred IT Limited,Operational Responses,31/10/2017,9075301,Refuse / Trade Waste Collection,40.00 
Shred IT Limited,Operational Responses,31/10/2017,9075301,Refuse / Trade Waste Collection,40.00 
Shred IT Limited,Operational Responses,31/10/2017,9075301,Refuse / Trade Waste Collection,40.00 
Shred IT Limited,Operational Responses,31/10/2017,9075301,Refuse / Trade Waste Collection,40.00 
Shred IT Limited,Operational Responses,31/10/2017,9075301,Refuse / Trade Waste Collection,40.00 
Shred IT Limited,Operational Responses,31/10/2017,9075301,Refuse / Trade Waste Collection,40.00 
Shred IT Limited,Operational Responses,31/10/2017,9075301,Refuse / Trade Waste Collection,40.00 
Shred IT Limited,Operational Responses,31/10/2017,9075301,Refuse / Trade Waste Collection,40.00 
Shred IT Limited,Management & Support Services,31/10/2017,9075301,Refuse / Trade Waste Collection,150.00 
Veolia ES UK Limited,Management & Support Services,31/10/2017,9075505,Refuse / Trade Waste Collection,"1,525.03 "
Srcl Ltd,Operational Responses,30/11/2017,9075506,Refuse / Trade Waste Collection,45.07 
Srcl Ltd,Operational Responses,30/11/2017,9075506,Refuse / Trade Waste Collection,45.07 
Srcl Ltd,Operational Responses,30/11/2017,9075506,Refuse / Trade Waste Collection,34.07 
Srcl Ltd,Operational Responses,30/11/2017,9075506,Refuse / Trade Waste Collection,90.14 
Srcl Ltd,Operational Responses,30/11/2017,9075506,Refuse / Trade Waste Collection,45.07 
Srcl Ltd,Operational Responses,30/11/2017,9075506,Refuse / Trade Waste Collection,45.07 
Srcl Ltd,Management & Support Services,30/11/2017,9075506,Refuse / Trade Waste Collection,122.61 
NCC Sundry Debtors,Operational Responses,01/11/2017,9075278,Grounds Maintenance,33.29 
NCC Sundry Debtors,Operational Responses,01/11/2017,9075278,Grounds Maintenance,57.02 
NCC Sundry Debtors,Operational Responses,01/11/2017,9075278,Grounds Maintenance,30.60 
NCC Sundry Debtors,Operational Responses,01/11/2017,9075278,Grounds Maintenance,155.91 
NCC Sundry Debtors,Operational Responses,01/11/2017,9075278,Grounds Maintenance,32.37 
NCC Sundry Debtors,Operational Responses,01/11/2017,9075278,Grounds Maintenance,32.85 
NCC Sundry Debtors,Operational Responses,01/11/2017,9075278,Grounds Maintenance,35.52 
NCC Sundry Debtors,Operational Responses,01/11/2017,9075278,Grounds Maintenance,32.98 
NCC Sundry Debtors,Operational Responses,01/11/2017,9075278,Grounds Maintenance,22.12 
NCC Sundry Debtors,Operational Responses,01/11/2017,9075278,Grounds Maintenance,22.99 
NCC Sundry Debtors,Operational Responses,01/11/2017,9075278,Grounds Maintenance,21.85 
NCC Sundry Debtors,Operational Responses,01/11/2017,9075278,Grounds Maintenance,147.02 
NCC Sundry Debtors,Operational Responses,01/11/2017,9075278,Grounds Maintenance,31.75 
NCC Sundry Debtors,Operational Responses,01/11/2017,9075278,Grounds Maintenance,91.31 
NCC Sundry Debtors,Operational Responses,01/11/2017,9075278,Grounds Maintenance,181.64 
NCC Sundry Debtors,Operational Responses,01/11/2017,9075278,Grounds Maintenance,67.66 
NCC Sundry Debtors,Operational Responses,01/11/2017,9075278,Grounds Maintenance,22.77 
NCC Sundry Debtors,Operational Responses,01/11/2017,9075278,Grounds Maintenance,57.37 
NCC Sundry Debtors,Operational Responses,01/11/2017,9075278,Grounds Maintenance,9.50 
NCC Sundry Debtors,Operational Responses,01/11/2017,9075278,Grounds Maintenance,8.59 
NCC Sundry Debtors,Operational Responses,01/11/2017,9075278,Grounds Maintenance,111.68 
NCC Sundry Debtors,Operational Responses,01/11/2017,9075278,Grounds Maintenance,66.57 
NCC Sundry Debtors,Management & Support Services,01/11/2017,9075278,Grounds Maintenance,868.30 
NCC Sundry Debtors,Prevention & Education,01/11/2017,9075278,Grounds Maintenance,40.29 
NCC Sundry Debtors,Operational Responses,01/12/2017,9075417,Grounds Maintenance,33.29 
NCC Sundry Debtors,Operational Responses,01/12/2017,9075417,Grounds Maintenance,57.02 
NCC Sundry Debtors,Operational Responses,01/12/2017,9075417,Grounds Maintenance,30.60 
NCC Sundry Debtors,Operational Responses,01/12/2017,9075417,Grounds Maintenance,155.91 
NCC Sundry Debtors,Operational Responses,01/12/2017,9075417,Grounds Maintenance,32.37 
NCC Sundry Debtors,Operational Responses,01/12/2017,9075417,Grounds Maintenance,32.85 
NCC Sundry Debtors,Operational Responses,01/12/2017,9075417,Grounds Maintenance,35.52 
NCC Sundry Debtors,Operational Responses,01/12/2017,9075417,Grounds Maintenance,32.98 
NCC Sundry Debtors,Operational Responses,01/12/2017,9075417,Grounds Maintenance,22.12 
NCC Sundry Debtors,Operational Responses,01/12/2017,9075417,Grounds Maintenance,22.99 
NCC Sundry Debtors,Operational Responses,01/12/2017,9075417,Grounds Maintenance,21.85 
NCC Sundry Debtors,Operational Responses,01/12/2017,9075417,Grounds Maintenance,147.02 
NCC Sundry Debtors,Operational Responses,01/12/2017,9075417,Grounds Maintenance,31.75 
NCC Sundry Debtors,Operational Responses,01/12/2017,9075417,Grounds Maintenance,91.31 
NCC Sundry Debtors,Operational Responses,01/12/2017,9075417,Grounds Maintenance,181.64 
NCC Sundry Debtors,Operational Responses,01/12/2017,9075417,Grounds Maintenance,67.66 
NCC Sundry Debtors,Operational Responses,01/12/2017,9075417,Grounds Maintenance,22.77 
NCC Sundry Debtors,Operational Responses,01/12/2017,9075417,Grounds Maintenance,57.37 
NCC Sundry Debtors,Operational Responses,01/12/2017,9075417,Grounds Maintenance,9.50 
NCC Sundry Debtors,Operational Responses,01/12/2017,9075417,Grounds Maintenance,8.59 
NCC Sundry Debtors,Operational Responses,01/12/2017,9075417,Grounds Maintenance,111.68 
NCC Sundry Debtors,Operational Responses,01/12/2017,9075417,Grounds Maintenance,66.57 
NCC Sundry Debtors,Management & Support Services,01/12/2017,9075417,Grounds Maintenance,868.30 
NCC Sundry Debtors,Prevention & Education,01/12/2017,9075417,Grounds Maintenance,40.29 
Irongate Group Ltd,Management & Support Services,18/10/2017,9075334,Cleaning Materials,307.78 
Irongate Group Ltd,Management & Support Services,18/12/2017,9075571,Cleaning Materials,302.58 
Irongate Group Ltd,Management & Support Services,17/11/2017,9075594,Cleaning Materials,302.58 
Irongate Group Ltd,Operational Responses,18/12/2017,9075649,Cleaning Materials,209.63 
NCC Sundry Debtors,Operational Responses,22/11/2017,9075257,Contract Cleaning,500.00 
NCC Sundry Debtors,Operational Responses,01/12/2017,9075380,Contract Cleaning,"1,534.05 "
NCC Sundry Debtors,Operational Responses,01/12/2017,9075380,Contract Cleaning,109.20 
NCC Sundry Debtors,Operational Responses,01/12/2017,9075380,Contract Cleaning,"1,734.81 "
NCC Sundry Debtors,Operational Responses,01/12/2017,9075380,Contract Cleaning,684.39 
NCC Sundry Debtors,Operational Responses,01/12/2017,9075380,Contract Cleaning,437.02 
NCC Sundry Debtors,Operational Responses,01/12/2017,9075380,Contract Cleaning,136.50 
NCC Sundry Debtors,Operational Responses,01/12/2017,9075380,Contract Cleaning,822.57 
NCC Sundry Debtors,Operational Responses,01/12/2017,9075380,Contract Cleaning,273.00 
NCC Sundry Debtors,Operational Responses,01/12/2017,9075380,Contract Cleaning,218.44 
NCC Sundry Debtors,Operational Responses,01/12/2017,9075380,Contract Cleaning,986.16 
NCC Sundry Debtors,Operational Responses,01/12/2017,9075380,Contract Cleaning,163.80 
NCC Sundry Debtors,Operational Responses,01/12/2017,9075380,Contract Cleaning,245.74 
NCC Sundry Debtors,Operational Responses,01/12/2017,9075380,Contract Cleaning,245.74 
NCC Sundry Debtors,Operational Responses,01/12/2017,9075380,Contract Cleaning,684.39 
NCC Sundry Debtors,Operational Responses,01/12/2017,9075380,Contract Cleaning,163.80 
NCC Sundry Debtors,Operational Responses,01/12/2017,9075380,Contract Cleaning,986.16 
NCC Sundry Debtors,Operational Responses,01/12/2017,9075380,Contract Cleaning,958.44 
NCC Sundry Debtors,Operational Responses,01/12/2017,9075380,Contract Cleaning,409.67 
NCC Sundry Debtors,Operational Responses,01/12/2017,9075380,Contract Cleaning,273.13 
NCC Sundry Debtors,Operational Responses,01/12/2017,9075380,Contract Cleaning,600.73 
NCC Sundry Debtors,Operational Responses,01/12/2017,9075380,Contract Cleaning,616.77 
NCC Sundry Debtors,Operational Responses,01/12/2017,9075380,Contract Cleaning,"1,507.38 "
NCC Sundry Debtors,Operational Responses,01/12/2017,9075380,Contract Cleaning,163.84 
NCC Sundry Debtors,Operational Responses,01/12/2017,9075380,Contract Cleaning,"2,897.91 "
NCC Sundry Debtors,Management & Support Services,01/12/2017,9075380,Contract Cleaning,"1,478.61 "
NCC Sundry Debtors,Management & Support Services,01/12/2017,9075380,Contract Cleaning,"3,117.66 "
NCC Sundry Debtors,Operational Responses,01/12/2017,9075385,Contract Cleaning,13.33 
NCC Sundry Debtors,Operational Responses,01/12/2017,9075385,Contract Cleaning,10.00 
NCC Sundry Debtors,Operational Responses,01/12/2017,9075385,Contract Cleaning,12.50 
NCC Sundry Debtors,Operational Responses,01/12/2017,9075385,Contract Cleaning,13.33 
NCC Sundry Debtors,Operational Responses,01/12/2017,9075385,Contract Cleaning,10.00 
NCC Sundry Debtors,Operational Responses,01/12/2017,9075385,Contract Cleaning,10.00 
NCC Sundry Debtors,Operational Responses,01/12/2017,9075385,Contract Cleaning,13.33 
NCC Sundry Debtors,Operational Responses,01/12/2017,9075385,Contract Cleaning,10.00 
NCC Sundry Debtors,Operational Responses,01/12/2017,9075385,Contract Cleaning,10.00 
NCC Sundry Debtors,Operational Responses,01/12/2017,9075385,Contract Cleaning,10.00 
NCC Sundry Debtors,Operational Responses,01/12/2017,9075385,Contract Cleaning,10.00 
NCC Sundry Debtors,Operational Responses,01/12/2017,9075385,Contract Cleaning,10.00 
NCC Sundry Debtors,Operational Responses,01/12/2017,9075385,Contract Cleaning,10.00 
NCC Sundry Debtors,Operational Responses,01/12/2017,9075385,Contract Cleaning,13.33 
NCC Sundry Debtors,Operational Responses,01/12/2017,9075385,Contract Cleaning,10.00 
NCC Sundry Debtors,Operational Responses,01/12/2017,9075385,Contract Cleaning,13.33 
NCC Sundry Debtors,Operational Responses,01/12/2017,9075385,Contract Cleaning,13.33 
NCC Sundry Debtors,Operational Responses,01/12/2017,9075385,Contract Cleaning,10.00 
NCC Sundry Debtors,Operational Responses,01/12/2017,9075385,Contract Cleaning,10.00 
NCC Sundry Debtors,Operational Responses,01/12/2017,9075385,Contract Cleaning,10.00 
NCC Sundry Debtors,Operational Responses,01/12/2017,9075385,Contract Cleaning,13.33 
NCC Sundry Debtors,Operational Responses,01/12/2017,9075385,Contract Cleaning,10.00 
NCC Sundry Debtors,Operational Responses,01/12/2017,9075385,Contract Cleaning,13.33 
NCC Sundry Debtors,Management & Support Services,01/12/2017,9075385,Contract Cleaning,30.00 
NCC Sundry Debtors,Management & Support Services,01/12/2017,9075385,Contract Cleaning,119.33 
NCC Sundry Debtors,Management & Support Services,01/12/2017,9075385,Contract Cleaning,13.33 
NCC Sundry Debtors,Operational Responses,01/12/2017,9075384,Window Cleaning,16.67 
NCC Sundry Debtors,Operational Responses,01/12/2017,9075384,Window Cleaning,10.00 
NCC Sundry Debtors,Operational Responses,01/12/2017,9075384,Window Cleaning,20.00 
NCC Sundry Debtors,Operational Responses,01/12/2017,9075384,Window Cleaning,10.00 
NCC Sundry Debtors,Operational Responses,01/12/2017,9075384,Window Cleaning,15.00 
NCC Sundry Debtors,Operational Responses,01/12/2017,9075384,Window Cleaning,8.33 
NCC Sundry Debtors,Operational Responses,01/12/2017,9075384,Window Cleaning,10.00 
NCC Sundry Debtors,Operational Responses,01/12/2017,9075384,Window Cleaning,1.00 
NCC Sundry Debtors,Operational Responses,01/12/2017,9075384,Window Cleaning,10.00 
NCC Sundry Debtors,Operational Responses,01/12/2017,9075384,Window Cleaning,13.33 
NCC Sundry Debtors,Operational Responses,01/12/2017,9075384,Window Cleaning,8.33 
NCC Sundry Debtors,Operational Responses,01/12/2017,9075384,Window Cleaning,8.33 
NCC Sundry Debtors,Operational Responses,01/12/2017,9075384,Window Cleaning,10.00 
NCC Sundry Debtors,Operational Responses,01/12/2017,9075384,Window Cleaning,10.00 
NCC Sundry Debtors,Operational Responses,01/12/2017,9075384,Window Cleaning,10.00 
NCC Sundry Debtors,Operational Responses,01/12/2017,9075384,Window Cleaning,11.67 
NCC Sundry Debtors,Operational Responses,01/12/2017,9075384,Window Cleaning,15.00 
NCC Sundry Debtors,Operational Responses,01/12/2017,9075384,Window Cleaning,10.00 
NCC Sundry Debtors,Operational Responses,01/12/2017,9075384,Window Cleaning,10.00 
NCC Sundry Debtors,Operational Responses,01/12/2017,9075384,Window Cleaning,10.00 
NCC Sundry Debtors,Operational Responses,01/12/2017,9075384,Window Cleaning,10.00 
NCC Sundry Debtors,Operational Responses,01/12/2017,9075384,Window Cleaning,13.33 
NCC Sundry Debtors,Operational Responses,01/12/2017,9075384,Window Cleaning,10.00 
NCC Sundry Debtors,Operational Responses,01/12/2017,9075384,Window Cleaning,33.33 
NCC Sundry Debtors,Management & Support Services,01/12/2017,9075384,Window Cleaning,11.67 
NCC Sundry Debtors,Management & Support Services,01/12/2017,9075384,Window Cleaning,43.33 
Mansfield Fire Station Museum,Operational Responses,30/11/2017,9075256,Insurance - Premises,749.04 
Woodway Engineering Limited,Management & Support Services,19/12/2017,9075625,Purchase of Vehicle Equipment,298.13 
Apb Mobile Installations Ltd,Management & Support Services,08/12/2017,9075349,Fleet Maintenance,460.00 
ECCO Safety Group UK,Management & Support Services,19/10/2017,9075407,Fleet Maintenance,"1,305.00 "
Tangible Solutions Limited,Management & Support Services,30/09/2017,9075408,Fleet Maintenance,"1,865.00 "
Tangible Solutions Limited,Management & Support Services,30/11/2017,9075410,Fleet Maintenance,"1,530.00 "
Freight Transport Association,Management & Support Services,17/10/2017,9075475,Fleet Maintenance,560.00 
Mitchell Diesel Limited,Management & Support Services,15/12/2017,9075494,Fleet Maintenance,228.75 
Keltruck Limited,Management & Support Services,12/12/2017,9075498,Fleet Maintenance,"1,584.69 "
Babcock Critical Services Ltd - MA,Management & Support Services,15/12/2017,9075509,Fleet Maintenance,"5,417.60 "
Nottingham City Council (City Treasurer),Management & Support Services,30/10/2017,9075510,Fleet Maintenance,"6,972.26 "
Nottingham City Council (City Treasurer),Management & Support Services,30/10/2017,9075511,Fleet Maintenance,"7,083.28 "
Nottingham City Council (City Treasurer),Management & Support Services,20/10/2017,9075512,Fleet Maintenance,"3,528.27 "
Nottingham City Council (City Treasurer),Management & Support Services,20/10/2017,9075513,Fleet Maintenance,"7,861.51 "
Nottingham City Council (City Treasurer),Management & Support Services,20/10/2017,9075514,Fleet Maintenance,"6,155.28 "
Nottingham City Council (City Treasurer),Management & Support Services,04/10/2017,9075515,Fleet Maintenance,"11,835.69 "
Nottingham City Council (City Treasurer),Management & Support Services,20/10/2017,9075516,Fleet Maintenance,"10,586.46 "
Keltruck Limited,Management & Support Services,15/12/2017,9075641,Fleet Maintenance,915.67 
Woodway Engineering Limited,Management & Support Services,30/11/2017,9075265,Fleet Modification,"1,133.43 "
CERTAS,Management & Support Services,07/11/2017,9075406,Fuel - Vehicle,"7,764.17 "
CERTAS,Operational Responses,29/11/2017,9075409,Fuel - Vehicle,"7,816.71 "
CERTAS,Management & Support Services,05/12/2017,9075493,Fuel - Vehicle,"7,830.33 "
CERTAS,Operational Responses,18/12/2017,9075642,Fuel - Vehicle,"6,916.11 "
ATS Euromaster,Management & Support Services,31/10/2017,9075346,Tyres,"1,195.22 "
Trent cars Ltd,Management & Support Services,31/10/2017,9075403,Public Transport,780.00 
Princes Trust - Petty Cash Account,Prevention & Education,30/10/2017,9075422,Public Transport,22.00 
Princes Trust - Petty Cash Account,Prevention & Education,30/10/2017,9075422,Public Transport,78.60 
Princes Trust - Petty Cash Account,Prevention & Education,30/10/2017,9075422,Public Transport,176.25 
Trent cars Ltd,Management & Support Services,30/11/2017,9075488,Public Transport,215.25 
Trent cars Ltd,Management & Support Services,31/10/2017,9075473,Public Transport,-780.00 
Sherwood Transfer Company,Fire Service Emergency Planning & Civil Defence,20/11/2017,9075258,Operational Equipment Purchase,418.70 
B D Motor Spares,Management & Support Services,05/12/2017,9075283,Operational Equipment Purchase,220.00 
Rosenbauer UK Plc,Management & Support Services,30/11/2017,9075313,Operational Equipment Purchase,"1,590.00 "
Holmatro Uk Limited,Management & Support Services,30/08/2017,9075320,Operational Equipment Purchase,335.73 
Holmatro Uk Limited,Operational Responses,31/07/2017,9075321,Operational Equipment Purchase,489.80 
Holmatro Uk Limited,Operational Responses,31/07/2017,9075322,Operational Equipment Purchase,583.60 
Holmatro Uk Limited,Operational Responses,31/07/2017,9075323,Operational Equipment Purchase,582.90 
Holmatro Uk Limited,Management & Support Services,31/07/2017,9075325,Operational Equipment Purchase,500.00 
Fire Hosetech,Management & Support Services,07/12/2017,9075411,Operational Equipment Purchase,205.00 
Fire Hosetech,Management & Support Services,07/12/2017,9075411,Operational Equipment Purchase,"3,745.38 "
Clan Tools & Plant Ltd,Management & Support Services,12/12/2017,9075454,Operational Equipment Purchase,"4,361.00 "
Bits At Micks,Management & Support Services,30/11/2017,9075481,Operational Equipment Purchase,220.00 
Lemaitre Ltd,Management & Support Services,22/11/2017,9075312,Breathing Apparatus,32.00 
Lemaitre Ltd,Management & Support Services,22/11/2017,9075312,Breathing Apparatus,990.00 
First Products (Sussex) Limited,Management & Support Services,01/12/2017,9075455,Breathing Apparatus,780.00 
Speedings Limited,Management & Support Services,11/12/2017,9075541,Breathing Apparatus,14.00 
Speedings Limited,Management & Support Services,11/12/2017,9075541,Breathing Apparatus,725.00 
Easynet,Management & Support Services,09/12/2017,9075383,Computer Software Maintenance Contracts,"1,043.07 "
Easynet,Management & Support Services,26/11/2017,9075500,Computer Software Maintenance Contracts,"9,279.12 "
Performance Monitoring Systems Ltd,Management & Support Services,15/12/2017,9075501,Computer Software Maintenance Contracts,"7,000.00 "
BT PLC,Management & Support Services,07/12/2017,9075490,Phones - Landline,"4,273.88 "
Risual Limited,Management & Support Services,15/12/2017,9075522,Phones - Landline,560.63 
Risual Limited,Management & Support Services,15/12/2017,9075615,Phones - Landline,725.40 
EE,Management & Support Services,01/12/2017,9075340,Phones - Mobiles,842.50 
EE,Management & Support Services,01/12/2017,9075341,Phones - Mobiles,"2,822.88 "
Buckhickman Inone,Management & Support Services,22/11/2017,9075250,Clothing and Uniform,35.17 
Buckhickman Inone,Management & Support Services,22/11/2017,9075250,Clothing and Uniform,38.85 
Giltbrook Dyers & Cleaners Limited,Management & Support Services,23/11/2017,9075261,Clothing and Uniform,262.02 
Rosenbauer UK Plc,Management & Support Services,17/11/2017,9075259,Protective Clothing,"1,470.85 "
Rig Equipment Limited,Management & Support Services,14/12/2017,9075476,Protective Clothing,513.00 
Princes Trust - Petty Cash Account,Prevention & Education,30/10/2017,9075422,Catering Equipment,40.00 
Princes Trust - Petty Cash Account,Prevention & Education,30/10/2017,9075422,Catering/Food & Beverages,3.80 
London Road - Petty Cash Account,Operational Responses,30/11/2017,9075491,Catering/Food & Beverages,27.44 
London Road - Petty Cash Account,Operational Responses,30/11/2017,9075491,Stationery,18.00 
Princes Trust - Petty Cash Account,Prevention & Education,30/10/2017,9075422,Postage,5.30 
Neopost Ltd,Management & Support Services,14/12/2017,9075521,Postage,500.00 
Cranlea and Company,Management & Support Services,28/11/2017,9075343,Carriage and Packaging,15.00 
Southcombe Bros Ltd,Management & Support Services,06/12/2017,9075370,Carriage and Packaging,12.85 
First Products (Sussex) Limited,Management & Support Services,01/12/2017,9075455,Carriage and Packaging,30.00 
Rig Equipment Limited,Management & Support Services,14/12/2017,9075476,Carriage and Packaging,41.65 
The Spray People Group Ltd,Management & Support Services,19/12/2017,9075635,Carriage and Packaging,15.00 
Cranlea and Company,Management & Support Services,28/11/2017,9075343,Occupational Health Costs,245.00 
Forge Health,Management & Support Services,15/12/2017,9075553,Occupational Health Costs,597.40 
Forge Health,Management & Support Services,15/12/2017,9075563,Occupational Health Costs,"3,000.00 "
Alison Maxwell Coaching Limited,Management & Support Services,22/11/2017,9075477,Consultancy Fees - Non Estates Related,"1,134.40 "
Turner and Townsend Project Management,Management & Support Services,19/12/2017,9075643,Consultancy Fees - Non Estates Related,"14,140.00 "
Civica Uk Limited,Management & Support Services,05/12/2017,9075645,Consultancy Fees - Non Estates Related,"2,800.00 "
Nottinghamshire County Council,Management & Support Services,20/11/2017,9075626,Consultation Costs,800.00 
Princes Trust - Petty Cash Account,Prevention & Education,30/10/2017,9075422,Subsistence,8.11 
London Road - Petty Cash Account,Operational Responses,30/11/2017,9075491,Subsistence,51.00 
Nuffield Sailing Centre,Management & Support Services,14/12/2017,9075502,Overnight Accomodation,840.00 
PRCA,Management & Support Services,29/11/2017,9075249,Subscriptions,750.00 
Jawaid Khaliq Boxing & Fitness Academy,Management & Support Services,20/11/2017,9075624,Marketing and Publicity,300.00 
Buckhickman Inone,Management & Support Services,13/12/2017,9075628,Marketing and Publicity,"1,057.68 "
Aqualeisure Watersports,Management & Support Services,13/11/2017,9075274,Training/ Teaching Equipment,10.50 
Aqualeisure Watersports,Management & Support Services,13/11/2017,9075274,Training/ Teaching Equipment,461.38 
B D Motor Spares,Operational Responses,05/12/2017,9075283,Training/ Teaching Equipment,110.00 
B D Motor Spares,Operational Responses,05/12/2017,9075283,Training/ Teaching Equipment,110.00 
B D Motor Spares,Operational Responses,05/12/2017,9075283,Training/ Teaching Equipment,220.00 
B D Motor Spares,Operational Responses,05/12/2017,9075283,Training/ Teaching Equipment,110.00 
B D Motor Spares,Operational Responses,05/12/2017,9075283,Training/ Teaching Equipment,110.00 
B D Motor Spares,Management & Support Services,05/12/2017,9075283,Training/ Teaching Equipment,110.00 
Bits At Micks,Operational Responses,30/11/2017,9075481,Training/ Teaching Equipment,220.00 
Bits At Micks,Operational Responses,30/11/2017,9075481,Training/ Teaching Equipment,110.00 
Bits At Micks,Operational Responses,30/11/2017,9075481,Training/ Teaching Equipment,220.00 
Bits At Micks,Operational Responses,30/11/2017,9075481,Training/ Teaching Equipment,110.00 
Princes Trust - Petty Cash Account,Prevention & Education,30/10/2017,9075422,Community Safety Delivery Consumables,12.00 
Princes Trust - Petty Cash Account,Prevention & Education,30/10/2017,9075422,Community Safety Delivery Consumables,44.20 
Sprue Safety Products Ltd,Management & Support Services,18/12/2017,9075650,Community Safety Delivery Consumables,917.00 
Vision Support Services Ltd,Operational Responses,30/11/2017,9075272,Community Safety Delivery Equipment,404.70 
Age UK Nottingham & Nottinghamshire,Management & Support Services,01/12/2017,9075263,Contribution to Partnership Working,"5,000.00 "
Framework Housing Association,Management & Support Services,05/12/2017,9075293,Contribution to Partnership Working,"6,250.00 "
Zurich Municipal (Head Office & Underwriting),Management & Support Services,06/12/2017,9075457,Insurance - Other Premiums,574.92 
Zurich Municipal (Head Office & Underwriting),Management & Support Services,06/12/2017,9075467,Insurance - Other Premiums,"14,138.85 "
Weightmans,Management & Support Services,17/11/2017,9075381,Insurance - Uninsured Losses/ Excess,512.40 
Travelers Insurance Company Ltd - Commercial Claims,Management & Support Services,06/12/2017,9075456,Insurance - Uninsured Losses/ Excess,"2,562.00 "
Freeth Cartwright Llp,Management & Support Services,30/09/2017,9075518,Legal Services,"1,500.00 "
Nottinghamshire County Council,Management & Support Services,16/11/2017,9075310,Treasury Services,"6,969.00 "
Arco East Midlands,Management & Support Services,22/11/2017,9075279,Stock,413.29 
Kays Medical Ltd,Management & Support Services,23/11/2017,9075294,Stock,221.60 
Dot Promotional Clothing,Management & Support Services,05/12/2017,9075303,Stock,261.00 
Goliath Footwear Ltd,Management & Support Services,28/11/2017,9075355,Stock,627.00 
Dot Promotional Clothing,Management & Support Services,02/12/2017,9075358,Stock,409.92 
Dot Promotional Clothing,Management & Support Services,04/12/2017,9075365,Stock,536.50 
Dot Promotional Clothing,Management & Support Services,08/12/2017,9075367,Stock,"1,773.75 "
Dot Promotional Clothing,Management & Support Services,08/12/2017,9075369,Stock,362.50 
Southcombe Bros Ltd,Management & Support Services,06/12/2017,9075370,Stock,"2,460.00 "
Goliath Footwear Ltd,Management & Support Services,05/12/2017,9075397,Stock,"1,045.00 "
Romar Innovate,Management & Support Services,07/12/2017,9075399,Stock,259.44 
Dot Promotional Clothing,Management & Support Services,11/12/2017,9075418,Stock,261.00 
Dot Promotional Clothing,Management & Support Services,11/12/2017,9075419,Stock,754.00 
Dot Promotional Clothing,Management & Support Services,11/12/2017,9075420,Stock,363.20 
Dot Promotional Clothing,Management & Support Services,13/12/2017,9075428,Stock,667.00 
Dot Promotional Clothing,Management & Support Services,20/10/2017,9075598,Stock,239.25 
Buckhickman Inone,Management & Support Services,23/11/2017,9075599,Stock,437.28 
Irongate Group Ltd,Management & Support Services,30/11/2017,9075609,Stock,254.25 
The Spray People Group Ltd,Management & Support Services,19/12/2017,9075635,Stock,275.00 
Amptron Electrical Services,Management & Support Services,05/12/2017,9075443,Building Works,684.87 
Amptron Electrical Services,Management & Support Services,30/11/2017,9075449,Building Works,"8,339.73 "
Gelder Ltd,Management & Support Services,19/12/2017,9075630,Building Works,"300,444.23 "
Turner and Townsend Project Management,Management & Support Services,19/12/2017,9075644,Professional Fees - Architects,"9,600.00 "
EE,Management & Support Services,05/12/2017,9075523,Hardware,318.00 
Risual Limited,Management & Support Services,29/11/2017,9075492,Software and Licences,"1,900.00 "
data redacted,Management & Support Services,23/11/2017,9075248,Consultancy and Services,300.00 
Risual Limited,Management & Support Services,29/11/2017,9075282,Consultancy and Services,"12,750.00 "
Risual Limited,Management & Support Services,29/11/2017,9075282,Consultancy and Services,"12,750.00 "
Risual Limited,Management & Support Services,30/11/2017,9075333,Consultancy and Services,"1,500.00 "
Bytes Software Services Ltd,Management & Support Services,30/11/2017,9075412,Consultancy and Services,"3,960.00 "
Redacted Personal Data,Management & Support Services,28/09/2017,9075499,Consultancy and Services,418.00 
NTA Monitor Ltd,Management & Support Services,23/10/2017,9075613,Consultancy and Services,"7,300.00 "
NTA Monitor Ltd,Management & Support Services,21/11/2017,9075614,Consultancy and Services,"4,250.00 "
Risual Limited,Management & Support Services,20/12/2017,9075621,Consultancy and Services,950.00 
Draeger Safety UK Limited,Management & Support Services,27/11/2017,9075262,Operational Equipment - Purchase,"59,878.00 "
